bitfinex-derivatives/quotes_SOLF0:USTF0_20250124
["timestamp","ask_amount","ask_price","bid_price","bid_amount"]
[1737751011461,3.8628,258.79,258.76,14.93586284]
[1737751011766,0.02729194,258.82,258.71,16.17843782]
[1737751012058,0.02729194,258.82,258.76,14.91043782]
[1737751012266,0.69142636,258.97,258.81,14.91043782]
[1737751012456,1.3992,258.99,258.81,14.91043782]
[1737751012658,1.3992,258.99,258.86,14.91043782]
[1737751013061,3.8603,258.96,258.88,3.8613]
[1737751013261,1.3992,258.99,258.86,14.91043782]
[1737751013461,0.02950499,258.95,258.89,0.02850047]
[1737751014061,3.8608,258.92,258.89,0.02850047]
[1737751014263,0.02950499,258.95,258.89,0.02850047]
[1737751014763,3.8611,258.9,258.89,0.02850047]
[1737751020665,0.02950499,258.95,258.89,0.02850047]
[1737751021664,3.8606,258.94,258.89,3.88970047]
[1737751021868,0.02950499,258.95,258.89,3.88970047]
[1737751022073,0.02950499,258.95,258.89,0.02850047]
[1737751022263,3.8611,258.9,258.89,0.02850047]
[1737751024078,0.02950499,258.95,258.78,14.91043782]
[1737751024273,1.3992,258.99,258.78,14.91043782]
[1737751024767,3.8619,258.85,258.81,3.8624]
[1737751024980,3.8619,258.85,258.78,14.91043782]
[1737751025268,3.8619,258.85,258.8,0.02627377]
[1737751025872,0.0285848,258.86,258.8,0.02627377]
[1737751026073,3.8624,258.81,258.8,0.02627377]
[1737751029879,1.3613,258.85,258.8,0.02627377]
[1737751030476,3.8622,258.83,258.8,0.02627377]
[1737751034299,3.862,258.84,258.8,0.02627377]
[1737751034793,0.0285848,258.86,258.8,0.02627377]
[1737751034993,3.8624,258.81,258.8,0.02627377]
[1737751035293,3.9335,258.85,258.7,14.91043782]
[1737751035493,3.9335,258.85,258.66,1.2888]
[1737751035886,3.8638,258.72,258.68,3.8644]
[1737751036086,3.9335,258.85,258.66,1.2888]
[1737751036289,3.9335,258.85,258.73,0.02695979]
[1737751036290,0.02802953,258.78,258.73,0.02695979]
[1737751037492,3.8635,258.74,258.73,0.02695979]
[1737751037701,0.02802953,258.78,258.6,14.91043782]
[1737751037997,1.2998,258.73,258.6,14.91043782]
[1737751038790,0.02834849,258.69,258.64,0.02625805]
[1737751039287,0.02834849,258.69,258.5,14.91043782]
[1737751039494,16.21023782,258.73,258.5,14.91043782]
[1737751039495,1.3403,258.72,258.5,14.91043782]
[1737751039892,3.8659,258.59,258.5,18.77743782]
[1737751040088,3.8659,258.59,258.5,14.91043782]
[1737751040287,1.3403,258.72,258.5,14.91043782]
[1737751040494,0.02806237,258.57,258.52,0.02384861]
[1737751040691,1.3403,258.72,258.55,14.91043782]
[1737751041695,1.3403,258.72,258.56,1.3086]
[1737751041998,3.8641,258.71,258.62,3.8652]
[1737751042199,0.02554702,258.67,258.61,0.0261219]
[1737751043199,0.02554702,258.67,258.62,3.8652]
[1737751043694,0.02554702,258.67,258.61,0.0261219]
[1737751044594,0.02554702,258.67,258.5,14.91043782]
[1737751044801,1.2998,258.73,258.57,14.91043782]
[1737751045099,1.2998,258.73,258.6,3.8655]
[1737751045901,3.8647,258.66,258.64,0.02631116]
[1737751046802,0.0252364,258.69,258.64,0.02631116]
[1737751047001,3.8645,258.68,258.64,0.02631116]
[1737751047296,0.0252364,258.69,258.64,0.02631116]
[1737751047702,3.8647,258.66,258.64,0.02631116]
[1737751047901,0.0252364,258.69,258.64,0.02631116]
[1737751048296,0.0252364,258.69,258.64,3.89131116]
[1737751048603,0.0252364,258.69,258.64,0.02631116]
[1737751050704,0.0252364,258.69,258.66,3.8646]
[1737751050900,0.0252364,258.69,258.64,0.02631116]
[1737751052501,3.8647,258.66,258.64,0.02631116]
[1737751052994,3.8648,258.65,258.64,0.02631116]
[1737751054601,1.3178,258.68,258.52,14.91043782]
[1737751054798,1.2638,258.67,258.52,14.91043782]
[1737751055003,1.2638,258.67,258.52,18.77713782]
[1737751055203,1.2638,258.67,258.52,14.91043782]
[1737751055605,1.2638,258.67,258.57,14.91043782]
[1737751055801,0.02624522,258.62,258.57,14.91043782]
[1737751056201,3.8655,258.61,258.57,14.91043782]
[1737751056399,0.02624522,258.62,258.52,14.91043782]
[1737751056603,1.2638,258.67,258.47,14.91043782]
[1737751056796,3.8669,258.52,258.47,14.91043782]
[1737751057204,3.89478172,258.52,258.47,14.91043782]
[1737751057501,0.02788172,258.52,258.5,3.867]
[1737751057697,1.3241,258.66,258.47,14.91043782]
[1737751057899,1.3241,258.66,258.52,14.91043782]
[1737751058096,3.866,258.57,258.52,18.77713782]
[1737751058295,1.3241,258.66,258.52,14.91043782]
[1737751058500,1.2638,258.67,258.52,14.91043782]
[1737751058897,1.2638,258.67,258.47,0.4089]
[1737751058898,0.0276347,258.62,258.57,18.80326937]
[1737751060108,3.8929347,258.62,258.57,18.80326937]
[1737751060408,0.0276347,258.62,258.57,14.93726937]
[1737751060604,0.0276347,258.62,258.57,0.02683155]
[1737751060810,3.8659,258.58,258.57,0.02683155]
[1737751069517,3.8656,258.6,258.57,0.02683155]
[1737751069814,0.0276347,258.62,258.57,0.02683155]
[1737751070813,3.8659,258.58,258.57,0.02683155]
[1737751073714,0.0276347,258.62,258.57,0.02683155]
[1737751073919,7.7261,258.77,258.59,14.91043782]
[1737751074120,1.2649,258.76,258.59,14.91043782]
[1737751074419,3.8647,258.66,258.62,3.8652]
[1737751074619,1.2649,258.76,258.59,14.91043782]
[1737751074820,1.2649,258.76,258.54,14.91043782]
[1737751075020,3.8662,258.56,258.54,14.91043782]
[1737751075220,7.7279,258.72,258.49,14.91043782]
[1737751075411,0.02656012,258.58,258.52,0.02621119]
[1737751075613,3.8665,258.55,258.5,3.8669]
[1737751075919,3.8665,258.55,258.52,0.02754285]
[1737751076118,3.8666,258.53,258.52,0.02754285]
[1737751076321,0.02836217,258.58,258.52,0.02754285]
[1737751077021,3.8664,258.55,258.52,0.02754285]
[1737751077317,0.02836217,258.58,258.52,0.02754285]
[1737751077518,3.8666,258.53,258.52,0.02754285]
[1737751080627,0.02836217,258.58,258.52,0.02754285]
[1737751081522,1.2721,258.65,258.54,14.91043782]
[1737751081726,7.40334014,258.72,258.59,14.91043782]
[1737751082027,1.3159,258.77,258.59,14.91043782]
[1737751082723,0.02908368,258.71,258.69,14.91043782]
[1737751082928,1.303,258.82,258.69,14.91043782]
[1737751083625,3.863,258.78,258.7,3.864]
[1737751083929,0.02670748,258.77,258.71,0.02769246]
[1737751084124,0.02670748,258.77,258.74,14.91043782]
[1737751084428,0.02670748,258.77,258.75,3.8633]
[1737751084628,0.02670748,258.77,258.74,14.91043782]
[1737751085727,0.02670748,258.77,258.72,1.3295]
[1737751087529,0.02670748,258.77,258.71,0.02769246]
[1737751087925,3.8633,258.76,258.71,0.02769246]
[1737751088930,0.02670748,258.77,258.71,3.89159246]
[1737751089130,0.02670748,258.77,258.71,0.02769246]
[1737751089526,0.02670748,258.77,258.72,3.8637]
[1737751089930,0.02670748,258.77,258.71,0.02769246]
[1737751091433,3.8633,258.76,258.71,0.02769246]
[1737751091631,0.02670748,258.77,258.71,0.02769246]
[1737751092029,3.8636,258.73,258.71,0.02769246]
[1737751092337,0.02670748,258.77,258.6,1.3487]
[1737751092526,3.8644,258.69,258.59,14.91043782]
[1737751092834,1.2816,258.72,258.59,14.91043782]
[1737751093337,0.0261729,258.68,258.63,0.02814697]
[1737751094431,2.5582,258.8,258.67,14.91043782]
[1737751094634,3.8637,258.73,258.67,14.91043782]
[1737751095530,3.89133916,258.73,258.67,14.9394001]
[1737751096237,3.8638,258.72,258.67,18.8039001]
[1737751096738,3.89123916,258.73,258.68,3.8644]
[1737751096935,3.89123916,258.73,258.67,14.9394001]
[1737751097736,3.8638,258.72,258.67,18.8039001]
[1737751098137,0.02763916,258.73,258.67,14.9394001]
[1737751098441,3.8644,258.68,258.67,0.02896228]
[1737751099039,0.02763916,258.73,258.67,0.02896228]
[1737751099539,0.02763916,258.73,258.7,14.91043782]
[1737751102144,3.8631,258.77,258.7,14.91043782]
[1737751102939,3.8623,258.82,258.7,14.91043782]
[1737751103139,2.6449,258.87,258.71,1.3197]
[1737751103341,0.02891537,258.79,258.73,0.02918875]
[1737751103742,0.02891537,258.79,258.75,14.91043782]
[1737751104151,1.3713,258.87,258.75,14.91043782]
[1737751104343,1.3713,258.87,258.8,14.91043782]
[1737751104744,3.8617,258.87,258.8,14.91043782]
[1737751104939,1.2284,258.94,258.8,14.91043782]
[1737751105339,0.02738696,258.9,258.85,14.91043782]
[1737751106045,0.02738696,258.9,258.84,0.02913297]
[1737751107643,3.8618,258.86,258.84,0.02913297]
[1737751108049,0.02738696,258.9,258.84,0.02913297]
[1737751108253,3.8618,258.85,258.84,0.02913297]
[1737751110652,0.02738696,258.9,258.84,0.02913297]
[1737751111251,3.8618,258.85,258.84,0.02913297]
[1737751117859,1.2657,258.89,258.84,0.02913297]
[1737751118056,0.02738696,258.9,258.84,0.02913297]
[1737751118356,0.02738696,258.9,258.85,14.91043782]
[1737751118762,1.3381,258.97,258.89,14.91043782]
[1737751120053,3.8609,258.91,258.9,0.0245986]
[1737751121759,3.862,258.85,258.81,3.8623]
[1737751121960,3.862,258.85,258.8,14.91043782]
[1737751122257,3.862,258.85,258.79,3.8627]
[1737751122650,1.3381,258.97,258.71,1.3197]
[1737751122857,0.02571608,258.85,258.79,0.02834116]
[1737751123057,14.91043782,258.93,258.74,3.8633]
[1737751123258,0.02971126,258.85,258.79,0.02932329]
[1737751124051,3.8626,258.8,258.79,0.02932329]
[1737751124255,0.02971126,258.85,258.67,14.91043782]
[1737751124461,14.91043782,258.85,258.65,0.4056]
[1737751124755,3.8636,258.74,258.68,3.8643]
[1737751124949,14.91043782,258.85,258.63,14.91043782]
[1737751125352,3.8636,258.74,258.67,3.8645]
[1737751125554,3.8636,258.74,258.71,0.02779458]
[1737751126664,0.02528191,258.77,258.71,0.02779458]
[1737751126956,0.02528191,258.77,258.72,3.8637]
[1737751127161,0.02528191,258.77,258.71,0.02779458]
[1737751127363,0.02528191,258.77,258.72,3.8637]
[1737751127663,0.02528191,258.77,258.71,0.02779458]
[1737751128759,3.8632,258.76,258.71,3.89169458]
[1737751128961,0.02528191,258.77,258.71,0.02779458]
[1737751129558,3.8635,258.74,258.71,0.02779458]
[1737751130457,0.02528191,258.77,258.71,0.02779458]
[1737751131563,3.8636,258.73,258.71,0.02779458]
[1737751131756,0.02528191,258.77,258.71,0.02779458]
[1737751132157,3.8638,258.72,258.71,0.02779458]
[1737751132357,0.02528191,258.77,258.71,0.02779458]
[1737751132662,0.02528191,258.77,258.72,3.8637]
[1737751132863,0.02528191,258.77,258.71,0.02779458]
[1737751133156,3.8634,258.75,258.71,0.02779458]
[1737751133360,0.02528191,258.77,258.71,0.02779458]
[1737751134162,3.88838191,258.77,258.71,0.02779458]
[1737751135064,3.8632,258.76,258.71,3.89169458]
[1737751135363,0.02528191,258.77,258.71,0.02779458]
[1737751136264,3.8638,258.72,258.71,0.02779458]
[1737751139463,3.8651,258.64,258.59,3.8657]
[1737751139663,1.3926,258.71,258.53,14.91043782]
[1737751139862,1.3926,258.71,258.58,14.91043782]
[1737751140560,3.89110471,258.67,258.62,0.02748092]
[1737751140764,0.02650471,258.67,258.62,0.02748092]
[1737751141165,3.89110471,258.67,258.62,0.02748092]
[1737751141366,0.02650471,258.67,258.62,0.02748092]
[1737751141865,3.8648,258.66,258.62,0.02748092]
[1737751143168,0.02650471,258.67,258.62,0.02748092]
[1737751143466,1.3015,258.79,258.63,14.91043782]
[1737751143668,1.3015,258.79,258.68,14.91043782]
[1737751144267,3.8631,258.77,258.72,3.8638]
[1737751144463,1.3015,258.79,258.68,14.91043782]
[1737751144667,0.0253251,258.77,258.72,0.02657663]
[1737751144968,0.0253251,258.77,258.74,3.8635]
[1737751146067,0.0253251,258.77,258.76,3.8632]
[1737751146268,1.3015,258.88,258.73,16.24873782]
[1737751146567,1.3015,258.88,258.8,3.8626]
[1737751146767,1.3015,258.88,258.73,16.24873782]
[1737751147068,3.8616,258.87,258.78,14.91043782]
[1737751147571,0.02971679,258.85,258.8,0.02495381]
[1737751147865,0.02971679,258.85,258.81,3.8624]
[1737751148261,14.91043782,259.01,258.81,3.8624]
[1737751148569,11.5741,259.11,258.73,1.3383]
[1737751148570,3.8608,258.92,258.82,14.91043782]
[1737751149069,3.8607,258.93,258.86,3.8616]
[1737751149264,3.8607,258.93,258.82,14.91043782]
[1737751149464,0.02731136,258.92,258.87,0.02650666]
[1737751149867,3.88821136,258.92,258.87,0.02650666]
[1737751150566,0.02731136,258.92,258.87,0.02650666]
[1737751150766,3.861,258.91,258.87,0.02650666]
[1737751151070,0.02731136,258.92,258.87,0.02650666]
[1737751151672,0.02731136,258.92,258.73,1.3383]
[1737751151872,2.5207,258.92,258.73,1.3383]
[1737751152668,0.02825396,258.85,258.8,0.02957346]
[1737751153367,3.8624,258.81,258.8,0.02957346]
[1737751157568,1.3854,258.84,258.65,1.293]
[1737751157771,3.8631,258.77,258.72,3.8638]
[1737751158771,3.88780354,258.77,258.72,3.89046626]
[1737751159072,3.88780354,258.77,258.72,0.02666626]
[1737751162772,3.88780354,258.77,258.72,3.89046626]
[1737751165375,0.02470354,258.77,258.76,3.8632]
[1737751165670,1.3854,258.84,258.72,0.02666626]
[1737751165878,3.8614,258.89,258.83,3.8621]
[1737751166072,1.3084,258.91,258.77,14.91043782]
[1737751166273,1.3084,258.91,258.82,14.91043782]
[1737751166772,2.74,259.02,258.82,14.91043782]
[1737751166968,2.89698757,259.09,258.86,14.91043782]
[1737751167173,1.2875,259.11,258.99,14.91043782]
[1737751167374,3.8585,259.08,258.99,14.91043782]
[1737751167570,0.02947952,259.08,259.02,0.02877818]
[1737751167774,7.42041219,259.09,258.87,1.5336]
[1737751167974,3.8592,259.03,259.02,3.431e-05]
[1737751168174,14.91043782,259.08,258.86,14.91043782]
[1737751168577,3.8594,259.02,258.87,3.8615]
[1737751168877,2.6659,259.01,258.87,3.8615]
[1737751169077,1.2875,259.0,258.91,0.02746339]
[1737751169372,0.02459059,258.97,258.91,0.02746339]
[1737751171082,3.8607,258.93,258.91,0.02746339]
[1737751171282,0.02459059,258.97,258.81,14.91043782]
[1737751171482,1.2875,259.0,258.81,14.91043782]
[1737751172376,0.02474995,258.95,258.89,0.02912062]
[1737751173086,3.8611,258.93,258.89,0.02912062]
[1737751173279,0.02474995,258.95,258.89,0.02912062]
[1737751174081,3.8615,258.91,258.89,0.02912062]
[1737751175186,0.02474995,258.95,258.78,1.2621]
[1737751175383,14.91043782,258.99,258.78,1.2621]
[1737751175583,0.69146534,258.98,258.78,1.2621]
[1737751176187,14.91043782,258.99,258.78,1.2621]
[1737751176388,0.0295297,258.91,258.85,0.02794845]
[1737751176587,3.8619,258.88,258.85,0.02794845]
[1737751176790,0.0295297,258.91,258.85,0.02794845]
[1737751177088,3.8909297,258.91,258.85,3.89004845]
[1737751177284,3.8909297,258.91,258.85,0.02794845]
[1737751177588,3.8617,258.89,258.85,0.02794845]
[1737751177986,0.0295297,258.91,258.85,0.02794845]
[1737751178386,3.8910297,258.91,258.85,3.89014845]
[1737751178584,0.0295297,258.91,258.85,3.89014845]
[1737751178989,0.0295297,258.91,258.86,3.862]
[1737751179787,0.0295297,258.91,258.85,14.93838627]
[1737751179988,0.0295297,258.91,258.88,3.8618]
[1737751180184,0.0295297,258.91,258.85,14.93838627]
[1737751181090,3.8615,258.9,258.85,14.93838627]
[1737751181690,0.0295297,258.91,258.85,18.80058627]
[1737751183393,0.0295297,258.91,258.86,3.8621]
[1737751183690,0.0295297,258.91,258.87,9.3068987]
[1737751184391,0.0295297,258.91,258.87,13.1686987]
[1737751184893,0.0295297,258.91,258.88,3.8618]
[1737751185092,0.0295297,258.91,258.87,9.3068987]
[1737751185990,0.0295297,258.91,258.87,13.1686987]
[1737751186294,0.0295297,258.91,258.87,9.3068987]
[1737751188096,0.0295297,258.91,258.89,3.8616]
[1737751188993,0.0295297,258.91,258.88,3.8618]
[1737751189297,0.0295297,258.91,258.87,9.3068987]
[1737751189801,0.0295297,258.91,258.89,3.8615]
[1737751191002,1.2875,259.0,258.87,9.3068987]
[1737751191195,1.2875,259.0,258.92,9.3068987]
[1737751191897,3.8601,258.99,258.96,3.8606]
[1737751192100,0.02596194,258.99,258.96,3.8606]
[1737751192297,0.02596194,258.99,258.93,0.02684243]
[1737751192501,1.277,259.08,258.97,9.3068987]
[1737751192797,1.277,259.08,259.01,9.3068987]
[1737751193701,0.02782424,259.07,259.03,3.8595]
[1737751194196,0.02782424,259.07,259.06,3.8591]
[1737751194402,0.02782424,259.07,259.06,13.1659987]
[1737751194702,0.02782424,259.07,259.06,9.3068987]
[1737751195901,0.02782424,259.07,259.02,9.33486444]
[1737751196302,3.8591,259.06,259.02,9.33486444]
[1737751196898,3.88682424,259.07,259.02,9.33486444]
[1737751197301,0.02782424,259.07,259.02,9.33486444]
[1737751198103,3.8592,259.06,259.02,9.33486444]
[1737751198402,0.02782424,259.07,259.02,9.33486444]
[1737751198705,3.8595,259.03,259.02,0.02796574]
[1737751198901,9.3068987,259.05,258.9,9.3068987]
[1737751199202,3.8609,258.94,258.9,9.3068987]
[1737751199402,9.3068987,259.05,258.9,9.3068987]
[1737751199602,1.2503,259.04,258.9,9.3068987]
[1737751200199,0.02767373,259.0,258.86,9.3068987]
[1737751200395,0.02767373,259.0,258.82,9.3068987]
[1737751200601,9.3068987,259.01,258.84,3.8623]
[1737751200900,9.3068987,259.01,258.82,9.3068987]
[1737751201099,1.2503,259.04,258.87,9.3068987]
[1737751201496,0.02542751,258.98,258.93,0.02480482]
[1737751201801,3.8606,258.96,258.93,0.02480482]
[1737751202100,0.02542751,258.98,258.93,0.02480482]
[1737751202305,0.02542751,258.98,258.83,9.3068987]
[1737751202604,9.3068987,258.97,258.79,9.3068987]
[1737751202806,3.862,258.87,258.8,3.8628]
[1737751203005,9.3068987,258.92,258.75,9.3068987]
[1737751203206,3.8623,258.85,258.79,3.8631]
[1737751203402,2.6158,258.91,258.75,9.3068987]
[1737751203707,0.02957103,258.85,258.79,0.02782864]
[1737751204710,9.3068987,258.84,258.7,9.3068987]
[1737751205003,9.3068987,258.8,258.66,10.6483987]
[1737751205403,3.8639,258.74,258.66,14.5133987]
[1737751205801,14.91705701,258.84,258.66,5.2065]
[1737751206007,2.6158,258.91,258.67,0.02599444]
[1737751206008,3.8648,258.68,258.67,0.02599444]
[1737751206208,3.8648,258.68,258.6,163.96359926]
[1737751206409,2.74,258.79,258.65,0.02463918]
[1737751206908,3.8647,258.69,258.65,0.02463918]
[1737751207609,0.02684607,258.7,258.65,0.02463918]
[1737751208712,3.8647,258.69,258.65,0.02463918]
[1737751209006,0.02684607,258.7,258.65,0.02463918]
[1737751209209,0.02684607,258.7,258.54,14.91705701]
[1737751209409,3.8657,258.62,258.54,14.91705701]
[1737751209611,14.91705701,258.76,258.54,14.91705701]
[1737751209910,14.91705701,258.76,258.56,3.8665]
[1737751210111,1.2472,258.75,258.56,3.8665]
[1737751210412,3.8655,258.64,258.56,3.8665]
[1737751210711,1.2472,258.75,258.56,3.8665]
[1737751210906,0.02720786,258.63,258.54,3.8668]
[1737751211110,0.02720786,258.63,258.54,14.91705701]
[1737751211909,0.02720786,258.63,258.5,1.2463]
[1737751211910,0.02720786,258.63,258.61,3.8658]
[1737751212805,14.91705701,258.84,258.62,14.91705701]
[1737751213011,1.2534,258.85,258.69,3.8646]
[1737751213518,0.69011281,258.84,258.68,3.8647]
[1737751214015,0.02523179,258.79,258.73,0.02825453]
[1737751214511,14.9422888,258.79,258.57,14.91705701]
[1737751214716,1.3337,258.78,258.57,14.91705701]
[1737751215310,3.8642,258.72,258.6,3.8659]
[1737751215511,1.3337,258.78,258.57,14.91705701]
[1737751215713,0.02575308,258.69,258.63,14.91705701]
[1737751216517,0.02575308,258.69,258.68,3.8648]
[1737751217814,3.8638,258.75,258.68,3.8648]
[1737751218016,3.8638,258.75,258.69,3.8646]
[1737751218317,3.8639,258.74,258.69,3.8646]
[1737751218518,1.2653,258.83,258.65,3.8651]
[1737751218713,95.0,259.05,258.64,1.235]
[1737751218913,0.02734263,258.77,258.71,0.02619073]
[1737751219114,0.02734263,258.77,258.64,1.235]
[1737751219320,0.02734263,258.77,258.71,0.02701123]
[1737751220611,0.02734263,258.77,258.73,14.91705701]
[1737751220813,14.91705701,258.93,258.8,3.863]
[1737751220814,3.8622,258.86,258.8,3.863]
[1737751221018,2.74,258.93,258.8,3.863]
[1737751221214,2.74,258.93,258.73,14.91705701]
[1737751221414,17.65705701,258.93,258.7,14.91705701]
[1737751221619,0.68989311,258.92,258.7,14.91705701]
[1737751222120,0.02769828,258.84,258.78,0.02777817]
[1737751222611,3.8631,258.79,258.78,0.02777817]
[1737751223014,0.02769828,258.84,258.64,1.235]
[1737751223218,29.25705701,258.93,258.64,1.235]
[1737751223219,1.284,258.78,258.64,1.235]
[1737751224015,1.284,258.78,258.66,3.8649]
[1737751224215,3.8641,258.73,258.68,0.02657569]
[1737751224511,0.02568594,258.74,258.68,0.02657569]
[1737751225413,3.8646,258.69,258.68,0.02657569]
[1737751225616,0.02568594,258.74,258.68,0.02657569]
[1737751225912,3.8645,258.7,258.68,0.02657569]
[1737751226422,0.02568594,258.74,258.68,0.02657569]
[1737751226722,3.8646,258.69,258.68,0.02657569]
[1737751230314,9.32645889,258.73,258.57,9.32645889]
[1737751231318,0.02466666,258.68,258.53,9.32645889]
[1737751231621,0.02466666,258.68,258.53,13.19335889]
[1737751232320,3.8664,258.57,258.53,13.19335889]
[1737751233326,0.02795074,258.58,258.53,9.32645889]
[1737751233624,0.02795074,258.58,258.48,81.60645889]
[1737751234330,3.8672,258.52,258.48,81.60645889]
[1737751234519,9.32645889,258.65,258.48,81.60645889]
[1737751234724,0.02778047,258.53,258.48,81.60645889]
[1737751234925,9.32645889,258.57,258.4,55.22086869]
[1737751235120,0.02891783,258.53,258.4,9.32645889]
[1737751236226,3.8679,258.48,258.41,3.8688]
[1737751236730,3.8679,258.48,258.31,9.32645889]
[1737751236731,3.8686,258.43,258.32,3.8701]
[1737751237031,2.74,258.48,258.31,9.32645889]
[1737751237326,3.8692,258.39,258.31,9.32645889]
[1737751237625,3.8692,258.39,258.3,3.8704]
[1737751237832,0.02565082,258.4,258.32,3.8701]
[1737751238732,1.37665082,258.4,258.25,3.8711]
[1737751238934,1.351,258.4,258.25,3.8711]
[1737751239133,0.02794982,258.35,258.25,3.8711]
[1737751239328,3.8699,258.34,258.23,14.95636438]
[1737751239534,0.02794982,258.35,258.23,14.95636438]
[1737751239734,0.02794982,258.35,258.28,14.95636438]
[1737751240234,0.02794982,258.35,258.3,3.8704]
[1737751241326,0.02794982,258.35,258.24,1.2423]
[1737751241537,0.02794982,258.35,258.27,14.95636438]
[1737751242737,0.02794982,258.35,258.33,3.8699]
[1737751244035,0.02794982,258.35,258.29,3.8705]
[1737751244229,0.02794982,258.35,258.27,14.95636438]
[1737751245732,0.02794982,258.35,258.32,3.8701]
[1737751246139,0.02794982,258.35,258.27,14.95636438]
[1737751246439,3.89764982,258.35,258.29,3.8706]
[1737751246834,3.89764982,258.35,258.27,14.95636438]
[1737751247034,3.89764982,258.35,258.3,3.8704]
[1737751247237,0.02794982,258.35,258.27,14.95636438]
[1737751247639,0.02794982,258.35,258.29,3.8706]
[1737751248335,0.02794982,258.35,258.3,3.8703]
[1737751248536,0.02794982,258.35,258.27,14.95636438]
[1737751249442,0.02794982,258.35,258.3,3.8704]
[1737751249839,0.02794982,258.35,258.27,14.95636438]
[1737751250141,3.89764982,258.35,258.29,3.8706]
[1737751250340,3.89764982,258.35,258.27,14.95636438]
[1737751250540,3.8699,258.34,258.27,14.95636438]
[1737751250942,0.02794982,258.35,258.27,14.95636438]
[1737751251144,0.02794982,258.35,258.29,3.8706]
[1737751251441,3.8699,258.34,258.29,3.8706]
[1737751251743,0.02794982,258.35,258.23,14.95636438]
[1737751252137,3.8703,258.31,258.27,3.8709]
[1737751252334,0.02794982,258.35,258.27,3.8709]
[1737751252642,0.02794982,258.35,258.23,14.95636438]
[1737751253039,0.02794982,258.35,258.25,3.8711]
[1737751253238,0.02794982,258.35,258.23,14.95636438]
[1737751253433,3.8708,258.28,258.24,3.8713]
[1737751253633,3.8708,258.28,258.23,14.95636438]
[1737751254242,0.02916771,258.29,258.23,14.95636438]
[1737751255143,3.89986771,258.29,258.23,14.95636438]
[1737751255439,0.02916771,258.29,258.2,73.0629872]
[1737751255646,0.02916771,258.29,258.2,72.6505872]
[1737751256343,3.8711,258.26,258.2,76.5224872]
[1737751256538,0.02916771,258.29,258.2,72.6505872]
[1737751257045,3.8709,258.27,258.21,3.8718]
[1737751257347,0.02916771,258.29,258.2,72.6505872]
[1737751258139,0.02916771,258.29,258.23,3.8715]
[1737751258341,0.02916771,258.29,258.2,72.6505872]
[1737751258543,0.02916771,258.29,258.2,73.9939872]
[1737751259344,0.02916771,258.29,258.24,3.8713]
[1737751259746,3.8708,258.28,258.2,73.9939872]
[1737751259940,0.02916771,258.29,258.24,3.8712]
[1737751260243,0.02916771,258.29,258.2,72.6505872]
[1737751260444,0.02916771,258.29,258.26,3.871]
[1737751261249,0.02916771,258.29,258.24,3.8712]
[1737751261640,0.02916771,258.29,258.21,1.3434]
[1737751261845,2.5877,258.42,258.27,9.35523385]
[1737751262047,1.2496,258.42,258.31,9.35523385]
[1737751262241,3.8691,258.39,258.35,3.8697]
[1737751262543,3.8691,258.39,258.31,9.35523385]
[1737751262748,1.2496,258.42,258.26,9.35523385]
[1737751262944,3.8697,258.35,258.3,3.8703]
[1737751263152,3.8697,258.35,258.31,0.02493815]
[1737751263944,3.89438361,258.37,258.31,3.89523815]
[1737751264146,0.02488361,258.37,258.31,0.02493815]
[1737751264642,9.38011746,258.37,258.31,0.02493815]
[1737751265249,0.02488361,258.37,258.31,0.02493815]
[1737751265954,3.87,258.33,258.31,0.02493815]
[1737751267052,3.87,258.33,258.31,3.815e-05]
[1737751267453,1.298,258.32,258.31,3.815e-05]
[1737751269556,2.6455,258.32,258.31,3.815e-05]
[1737751270753,3.9158,258.32,258.31,3.815e-05]
[1737751275168,7.7859,258.32,258.31,3.815e-05]
[1737751278869,3.8701,258.32,258.31,3.815e-05]
[1737751280272,3.87,258.34,258.31,3.815e-05]
[1737751280467,0.02488361,258.37,258.31,3.815e-05]
[1737751280864,3.8701,258.32,258.31,3.815e-05]
[1737751283672,0.02488361,258.37,258.31,3.815e-05]
[1737751285277,3.8701,258.32,258.31,3.815e-05]
[1737751287474,0.02488361,258.37,258.31,3.815e-05]
[1737751288378,3.8698,258.35,258.31,3.815e-05]
[1737751289672,3.89438361,258.37,258.31,3.815e-05]
[1737751289879,0.02488361,258.37,258.31,3.815e-05]
[1737751291178,3.8696,258.36,258.31,3.815e-05]
[1737751292780,0.02488361,258.37,258.31,3.815e-05]
[1737751292975,3.8697,258.35,258.31,3.815e-05]
[1737751293469,3.8701,258.32,258.31,3.815e-05]
[1737751299786,0.02488361,258.37,258.31,3.815e-05]
[1737751301684,3.8701,258.32,258.31,3.815e-05]